bitfinex/quotes_SOLUSD_20241123
["timestamp","ask_amount","ask_price","bid_price","bid_amount"]
[1732348789485,5.25067598,257.41,257.36,4.58142167]
[1732348789800,2.86986451,257.4,257.36,4.58142167]
[1732348790000,5.25067598,257.41,257.36,4.58142167]
[1732348790200,23.776884,257.47,257.36,4.58142167]
[1732348790392,5.25067598,257.44,257.36,4.58142167]
[1732348790710,2.86941419,257.43,257.36,4.58142167]
[1732348791292,5.25067598,257.42,257.36,4.58142167]
[1732348791512,2.86941419,257.41,257.34,4.59676489]
[1732348791717,2.86941419,257.41,257.34,9.17818656]
[1732348792008,2.86941419,257.41,257.34,4.59676489]
[1732348792800,2.86935884,257.4,257.34,4.59676489]
[1732348793003,5.25067598,257.42,257.34,4.59676489]
[1732348793303,2.86932624,257.41,257.34,4.59676489]
[1732348793512,2.86932624,257.4,257.34,4.59676489]
[1732348793703,5.25067598,257.42,257.34,4.59676489]
[1732348793897,2.86944033,257.41,257.34,4.59676489]
[1732348794097,2.86944033,257.4,257.34,4.59676489]
[1732348794404,5.25067598,257.4,257.34,4.59676489]
[1732348794616,5.25067598,257.4,257.31,5.25067598]
[1732348794790,2.86936922,257.39,257.31,5.25067598]
[1732348794991,5.25067598,257.4,257.31,5.25067598]
[1732348795401,2.86952422,257.39,257.31,5.25067598]
[1732348795609,5.25067598,257.4,257.31,5.25067598]
[1732348795893,2.87044592,257.39,257.31,5.25067598]
[1732348796087,23.776884,257.47,257.31,5.25067598]
[1732348796413,5.25067598,257.41,257.32,4.59676489]
[1732348796615,23.776884,257.47,257.32,4.59676489]
[1732348796616,2.87053181,257.4,257.32,4.59676489]
[1732348796815,5.25067598,257.41,257.32,4.59676489]
[1732348796988,2.87073088,257.4,257.32,4.59676489]
[1732348797187,2.87073088,257.39,257.32,4.59676489]
[1732348797395,5.25067598,257.41,257.32,4.59676489]
[1732348797396,2.87073088,257.38,257.32,4.59676489]
[1732348797615,5.25067598,257.41,257.32,4.59676489]
[1732348797809,2.87032035,257.4,257.32,4.59676489]
[1732348798112,2.87032035,257.39,257.33,5.25067598]
[1732348798414,5.25067598,257.41,257.33,5.25067598]
[1732348798617,2.87065642,257.4,257.33,5.25067598]
[1732348798826,2.87065642,257.39,257.33,5.25067598]
[1732348799008,5.25067598,257.42,257.33,5.25067598]
[1732348799213,2.87059469,257.41,257.33,5.25067598]
[1732348799403,2.87059469,257.4,257.33,9.83175595]
[1732348799605,2.87059247,257.39,257.33,9.83175595]
[1732348799801,5.25067598,257.42,257.33,9.83175595]
[1732348800613,2.87049063,257.41,257.33,9.83175595]
[1732348800816,2.87049063,257.4,257.33,4.58107997]
[1732348801018,2.87044313,257.4,257.33,4.58107997]
[1732348801196,2.87044313,257.39,257.33,4.58107997]
[1732348801613,2.87044313,257.41,257.33,4.58107997]
[1732348801807,2.87044397,257.4,257.33,4.58107997]
[1732348802118,2.87044397,257.39,257.33,4.58107997]
[1732348802317,5.25067598,257.42,257.33,4.58107997]
[1732348802621,2.87092302,257.41,257.33,4.58107997]
[1732348802790,2.87092302,257.4,257.33,4.58107997]
[1732348802993,2.87092302,257.39,257.33,4.58107997]
[1732348803204,5.25067598,257.42,257.33,4.58107997]
[1732348803603,2.87134242,257.41,257.33,4.58107997]
[1732348804598,2.87134242,257.4,257.33,4.58107997]
[1732348804797,2.87134242,257.39,257.33,4.58107997]
[1732348804998,5.25136661,257.41,257.33,4.58107997]
[1732348805218,5.25136661,257.39,257.33,4.58107997]
[1732348805519,2.87040105,257.38,257.33,4.58107997]
[1732348805709,5.25136661,257.39,257.33,4.58107997]
[1732348805917,5.25136661,257.37,257.29,16.0701]
[1732348806295,5.25136661,257.35,257.29,16.0701]
[1732348806723,5.25136661,257.35,257.29,20.65117997]
[1732348806928,5.25136661,257.35,257.29,4.58107997]
[1732348807723,5.25136661,257.35,257.26,4.59676489]
[1732348808529,2.8682306,257.34,257.26,4.59676489]
[1732348808826,5.25136661,257.35,257.27,4.58107997]
[1732348809209,5.25136661,257.33,257.27,4.58107997]
[1732348809727,5.25136661,257.33,257.26,4.59676489]
[1732348811218,20.0,257.44,257.26,4.59676489]
[1732348811408,5.25136661,257.37,257.26,4.59676489]
[1732348811604,2.86605278,257.36,257.26,4.59676489]
[1732348811808,20.0,257.45,257.26,4.59676489]
[1732348812009,5.25136661,257.38,257.26,4.59676489]
[1732348813923,5.25136661,257.4,257.26,24.59676489]
[1732348814125,2.86594366,257.39,257.28,312.0]
[1732348814331,5.25136661,257.4,257.28,316.59676489]
[1732348814532,2.86590081,257.39,257.28,316.59676489]
[1732348814713,5.25136661,257.43,257.3,21.6794]
[1732348814913,2.86585208,257.42,257.31,4.59676489]
[1732348815112,2.86585208,257.41,257.31,4.59676489]
[1732348815325,5.25136661,257.43,257.31,4.59676489]
[1732348815527,2.86598669,257.42,257.31,4.59676489]
[1732348815724,2.86598669,257.41,257.31,4.59676489]
[1732348815925,5.25136661,257.43,257.31,4.59676489]
[1732348816123,2.86607219,257.42,257.31,4.59676489]
[1732348816531,2.86607219,257.41,257.31,4.59676489]
[1732348816839,5.25136661,257.43,257.31,4.59676489]
[1732348817043,2.86602654,257.42,257.31,4.59676489]
[1732348817334,5.25136661,257.43,257.31,4.59676489]
[1732348817521,2.86621031,257.42,257.31,4.59676489]
[1732348817710,5.25136661,257.43,257.33,312.0]
[1732348817912,2.86622087,257.42,257.33,312.0]
[1732348818133,5.25136661,257.41,257.33,312.0]
[1732348819333,5.25136661,257.41,257.31,4.59676489]
[1732348819926,23.776884,257.47,257.31,8.92506709]
[1732348820122,5.25136661,257.42,257.31,8.92506709]
[1732348820641,5.25136661,257.42,257.31,4.59676489]
[1732348820944,2.86646955,257.41,257.31,4.59676489]
[1732348821120,5.25136661,257.42,257.31,4.59676489]
[1732348821323,2.86646651,257.41,257.31,4.59676489]
[1732348821524,5.25136661,257.42,257.31,4.59676489]
[1732348821738,2.86646468,257.41,257.31,4.59676489]
[1732348821939,5.25136661,257.42,257.31,4.59676489]
[1732348822445,5.25136661,257.42,257.31,316.59676489]
[1732348823121,5.25136661,257.4,257.31,316.59676489]
[1732348823920,5.25136661,257.41,257.31,316.59676489]
[1732348826831,5.25136661,257.41,257.31,4.59676489]
[1732348827943,5.25136661,257.41,257.31,24.59676489]
[1732348828546,5.0,257.49,257.33,20.0]
[1732348828742,2.8670178,257.48,257.35,20.0]
[1732348828948,2.8670178,257.47,257.37,6.187]
[1732348829118,5.0,257.49,257.38,8.92506709]
[1732348829323,2.86657608,257.48,257.39,20.0]
[1732348829524,5.0,257.49,257.39,20.0]
[1732348829525,5.0,257.49,257.4,20.17395378]
[1732348829744,5.0,257.49,257.44,312.0]
[1732348830452,10.25136661,257.49,257.44,312.0]
[1732348830820,10.25136661,257.49,257.4,20.17395378]
[1732348833449,5.0,257.49,257.4,20.17395378]
[1732348833833,5.0,257.49,257.4,332.17395378]
[1732348836147,10.25136661,257.49,257.4,332.17395378]
[1732348836331,10.25136661,257.49,257.4,20.17395378]
[1732348837533,5.25136661,257.47,257.4,4.84015378]
[1732348839853,5.25136661,257.43,257.34,20.17395378]
[1732348841752,5.25136661,257.43,257.35,4.84015378]
[1732348841950,23.776884,257.48,257.35,4.84015378]
[1732348842253,5.25136661,257.47,257.35,4.84015378]
[1732348842458,5.25136661,257.47,257.36,4.25723553]
[1732348842749,5.25136661,257.47,257.37,4.84015378]
[1732348843253,5.0,257.49,257.37,4.84015378]
[1732348843437,5.25136661,257.48,257.37,4.84015378]
[1732348844255,5.0,257.49,257.37,4.84015378]
[1732348844448,5.25136661,257.48,257.37,4.84015378]
[1732348844958,5.25136661,257.46,257.35,3.863]
[1732348845144,5.25136661,257.44,257.35,3.863]
[1732348847350,5.25136661,257.44,257.35,315.863]
[1732348852556,5.25136661,257.45,257.35,8.70315378]
[1732348853743,5.25136661,257.41,257.23,15.7462]
[1732348853932,5.25136661,257.41,257.29,4.84015378]
[1732348855258,5.25136661,257.39,257.29,4.84015378]
[1732348855739,5.25136661,257.39,257.3,312.0]
[1732348856148,5.25136661,257.39,257.3,316.84015378]
[1732348858057,5.25136661,257.39,257.31,4.84015378]
[1732348858446,5.25136661,257.41,257.31,4.84015378]
[1732348859041,21.457,257.48,257.31,4.84015378]
[1732348859246,5.25136661,257.43,257.31,4.84015378]
[1732348861062,5.25136661,257.41,257.31,4.84015378]
[1732348861563,5.25136661,257.41,257.33,312.0]
[1732348861741,5.25136661,257.41,257.31,4.84015378]
[1732348861939,5.25136661,257.39,257.31,4.84015378]
[1732348864756,5.25136661,257.39,257.31,316.84015378]
[1732348865260,5.25136661,257.37,257.31,312.0]
[1732348865463,5.25136661,257.37,257.25,7.98984813]
[1732348865764,5.25136661,257.37,257.25,4.57148711]
[1732348868478,5.25136661,257.37,257.28,312.0]
[1732348868849,16.4349,257.4,257.28,312.0]
[1732348869055,21.68626661,257.4,257.29,4.57148711]
[1732348870044,16.4349,257.4,257.29,4.57148711]
[1732348870243,21.68626661,257.4,257.29,4.57148711]
[1732348871972,16.4349,257.47,257.29,4.57148711]
[1732348872157,5.25136661,257.44,257.34,312.0]
[1732348872955,5.25136661,257.44,257.35,3.863]
[1732348873155,5.25136661,257.44,257.29,4.57148711]
[1732348874061,5.25136661,257.42,257.3,3.863]
[1732348875070,16.4349,257.47,257.3,23.863]
[1732348875256,5.25136661,257.42,257.3,23.863]
[1732348876187,5.25136661,257.42,257.35,312.0]
[1732348879471,5.25027262,257.43,257.35,312.0]
[1732348880364,2.86244453,257.42,257.31,5.25027262]
[1732348880679,2.86244453,257.42,257.3,28.12071395]
[1732348880680,5.25027262,257.42,257.33,5.25027262]
[1732348880874,5.25027262,257.42,257.33,9.82175973]
[1732348883268,5.25027262,257.42,257.34,312.0]
[1732348886357,5.25027262,257.42,257.34,316.80129822]
[1732348891994,5.25027262,257.4,257.34,316.80129822]
[1732348892164,5.25027262,257.4,257.34,4.80129822]
[1732348895184,5.25027262,257.4,257.34,316.80129822]
[1732348895366,5.25027262,257.4,257.34,4.80129822]
[1732348896083,16.4349,257.47,257.34,9.36143375]
[1732348896423,8.11353543,257.46,257.37,5.25027262]
[1732348896692,2.86326281,257.45,257.37,10.05157084]
[1732348896982,2.86326281,257.45,257.38,4.80129822]
[1732348897486,2.86326281,257.45,257.39,5.25027262]
[1732348897686,16.4349,257.47,257.39,5.25027262]
[1732348897897,2.86322899,257.46,257.43,5.25027262]
[1732348898070,5.0,257.49,257.43,5.25027262]
[1732348898391,2.86333675,257.48,257.45,5.25027262]
[1732348898562,5.0,257.49,257.45,5.25027262]
[1732348899896,5.0,257.49,257.41,23.776884]
[1732348900186,5.0,257.49,257.44,5.25027262]
[1732348900386,5.0,257.49,257.41,28.33701953]
[1732348900387,5.0,257.49,257.46,5.25027262]
[1732348900565,5.0,257.49,257.48,5.25027262]
[1732348901582,5.0,257.49,257.48,29.02715662]
[1732348901872,5.0,257.49,257.48,341.02715662]
[1732348902066,5.0,257.49,257.48,345.72660882]
[1732348903285,16.0535,257.67,257.48,370.50443482]
[1732348903483,16.0535,257.67,257.47,2.5]
[1732348903484,8.10494433,257.66,257.57,5.25027262]
[1732348903694,5.25027262,257.66,257.57,5.25027262]
[1732348904270,5.25027262,257.66,257.49,53.83634306]
[1732348904572,16.0535,257.67,257.57,5.25027262]
[1732348904975,5.25027262,257.65,257.57,5.25027262]
[1732348905174,5.25027262,257.61,257.49,53.2541622]
[1732348905367,5.25027262,257.59,257.51,5.25027262]
[1732348905563,5.25027262,257.59,257.51,9.94972482]
[1732348905768,5.25027262,257.61,257.53,5.25027262]
[1732348905967,16.0535,257.67,257.53,5.25027262]
[1732348906166,5.25027262,257.65,257.57,5.25027262]
[1732348906369,5.25027262,257.65,257.57,317.25027262]
[1732348907174,2.5,257.77,257.63,5.25027262]
[1732348907175,6.0194,257.77,257.63,5.25027262]
[1732348907375,2.84572433,257.76,257.7,5.25027262]
[1732348907591,6.0194,257.77,257.7,5.25027262]
[1732348908503,5.25027262,257.73,257.64,10.33311153]
[1732348908794,5.25027262,257.71,257.64,10.38666926]
[1732348908999,5.25027262,257.71,257.64,5.13639664]
[1732348909178,6.0194,257.77,257.64,5.13639664]
[1732348909179,5.25027262,257.73,257.64,10.38666926]
[1732348909380,5.25027262,257.71,257.64,10.38666926]
[1732348909580,5.25027262,257.69,257.64,5.13639664]
[1732348910083,5.25027262,257.67,257.64,5.13639664]
[1732348910386,5.25027262,257.65,257.58,10.33311153]
[1732348910772,5.25027262,257.63,257.58,5.13639664]
[1732348911904,5.25027262,257.61,257.51,15.58338415]
[1732348912099,5.25027262,257.59,257.51,10.33311153]
[1732348912578,16.0535,257.66,257.51,10.33311153]
[1732348912780,8.19299876,257.59,257.51,18.52611029]
[1732348913587,8.19299876,257.59,257.51,10.33311153]
[1732348913880,8.19299876,257.56,257.51,5.13639664]
[1732348914377,16.0535,257.66,257.51,13.3293954]
[1732348914582,8.19299876,257.6,257.51,13.3293954]
[1732348915600,8.19299876,257.64,257.55,8.19299876]
[1732348915976,24.24649876,257.66,257.57,8.19299876]
[1732348916487,8.19299876,257.64,257.57,8.19299876]
[1732348916686,8.19299876,257.64,257.55,13.3293954]
[1732348917399,8.19299876,257.62,257.53,8.19299876]
[1732348918001,8.19299876,257.57,257.49,5.13639664]
[1732348918380,8.19299876,257.55,257.49,5.13639664]
[1732348919208,8.19299876,257.55,257.44,5.19671489]
[1732348919209,8.19299876,257.53,257.44,5.19671489]
[1732348919379,8.19299876,257.53,257.44,13.38971365]
[1732348920191,8.19299876,257.55,257.46,8.19299876]
[1732348920981,8.19299876,257.57,257.48,8.19299876]
[1732348921189,8.19299876,257.59,257.5,8.19299876]
[1732348922611,8.19299876,257.57,257.49,8.99939664]
[1732348922793,8.19299876,257.55,257.49,5.13639664]
[1732348924802,2.5,257.65,257.49,5.13639664]
[1732348924803,8.19624964,257.54,257.49,5.13639664]
[1732348925505,8.19624964,257.54,257.48,5.19671489]
[1732348926383,8.19624964,257.54,257.44,312.0]
[1732348926600,8.19624964,257.54,257.43,5.13639664]
[1732348927284,8.19624964,257.52,257.43,5.13639664]
[1732348929390,8.19624964,257.54,257.43,5.13639664]
[1732348929590,8.19624964,257.54,257.43,317.13639664]
[1732348929787,8.19624964,257.56,257.44,23.776884]
[1732348929986,15.1057,257.57,257.44,34.69242427]
[1732348931412,8.19624964,257.6,257.45,20.0]
[1732348931608,8.19624964,257.6,257.46,10.33311153]
[1732348931797,8.19624964,257.6,257.47,20.0]
[1732348932389,8.19624964,257.58,257.47,20.0]
[1732348932811,8.19624964,257.56,257.46,10.33311153]
[1732348933308,23.776884,257.62,257.46,10.33311153]
[1732348933309,8.19624964,257.54,257.46,5.13639664]
[1732348933696,16.1802,257.63,257.46,5.13639664]
[1732348934026,8.19624964,257.61,257.47,5.19671489]
[1732348934196,8.19624964,257.61,257.48,5.13639664]
[1732348935715,8.19624964,257.59,257.48,5.13639664]
[1732348936287,8.19624964,257.59,257.51,312.0]
[1732348936487,8.19624964,257.57,257.48,5.13639664]
[1732348936714,16.1802,257.63,257.48,5.13639664]
[1732348936715,8.19624964,257.55,257.48,5.13639664]
[1732348937616,8.19624964,257.57,257.48,5.13639664]
[1732348939508,8.19624964,257.57,257.48,317.13639664]
[1732348940801,8.19624964,257.55,257.48,5.13639664]
[1732348941117,8.19624964,257.53,257.42,5.13639664]
[1732348943906,8.19624964,257.55,257.43,5.19671489]
[1732348944095,16.1802,257.63,257.44,23.776884]
[1732348944297,8.19624964,257.58,257.45,5.19671489]
[1732348944505,8.19624964,257.56,257.45,5.19671489]
[1732348945408,8.19624964,257.56,257.45,10.33311153]
[1732348946917,8.19624964,257.58,257.45,10.33311153]
[1732348947417,8.19624964,257.58,257.48,312.0]
[1732348948705,8.19624964,257.56,257.48,312.0]
[1732348954709,5.24511693,257.54,257.45,10.33311153]
[1732348954927,5.24511693,257.52,257.45,10.33311153]
[1732348955502,5.24511693,257.5,257.36,3.863]
[1732348955707,5.24511693,257.5,257.39,8.99939664]
[1732348955929,5.24511693,257.5,257.4,14.19611153]
[1732348956129,5.24511693,257.5,257.41,20.0]
[1732348956308,5.24511693,257.5,257.41,25.13639664]
[1732348956625,5.24511693,257.5,257.41,20.0]
[1732348956808,5.24511693,257.52,257.42,5.13639664]
[1732348957930,5.24511693,257.5,257.42,317.13639664]
[1732348959517,5.24511693,257.5,257.42,5.13639664]
[1732348960131,5.24511693,257.46,257.36,3.863]
[1732348960331,5.24511693,257.46,257.36,8.99939664]
[1732348962425,5.24511693,257.46,257.36,320.99939664]
[1732348962930,20.98046772,257.53,257.36,317.13639664]
[1732348962931,5.24511693,257.42,257.36,317.13639664]
[1732348963131,5.24511693,257.42,257.36,5.13639664]
[1732348966941,5.24511693,257.44,257.36,5.13639664]
[1732348969932,5.24511693,257.44,257.36,317.13639664]
[1732348970325,23.776884,257.52,257.36,317.13639664]
[1732348970644,5.24511693,257.45,257.36,317.13639664]
[1732348972731,5.24511693,257.45,257.36,5.13639664]
[1732348973020,5.24511693,257.45,257.33,23.776884]
[1732348973342,5.24511693,257.45,257.34,5.13639664]
[1732348975849,5.24511693,257.45,257.34,317.13639664]
[1732348978436,23.776884,257.52,257.34,317.13639664]
[1732348978437,5.24511693,257.43,257.34,317.13639664]
[1732348978956,5.24511693,257.43,257.34,5.13639664]
[1732348981824,5.24511693,257.43,257.34,317.13639664]
[1732348982248,5.24511693,257.43,257.34,5.13639664]
[1732348982948,23.776884,257.52,257.34,5.13639664]
[1732348983246,5.24511693,257.43,257.34,5.13639664]
[1732348983430,23.776884,257.52,257.34,5.13639664]
[1732348983629,2.84611751,257.51,257.34,5.13639664]
[1732348983840,5.24511693,257.45,257.35,4.680326]
[1732348984047,5.24511693,257.45,257.36,5.13639664]
[1732348984552,5.24511693,257.45,257.36,9.81672264]
[1732348984743,5.24511693,257.47,257.37,4.680326]
[1732348984950,5.24511693,257.49,257.38,20.14829664]
[1732348985142,5.24511693,257.49,257.41,312.0]
[1732348985454,5.24511693,257.49,257.41,317.13639664]
[1732348987846,15.7969,257.6,257.42,5.13639664]
[1732348988047,5.24511693,257.53,257.42,9.81672264]
[1732348988255,5.24511693,257.55,257.42,9.81672264]
[1732348988839,5.24511693,257.55,257.43,20.0]
[1732348989043,5.24511693,257.55,257.43,25.13639664]
[1732348990841,5.24511693,257.55,257.43,337.13639664]
[1732348991050,15.7969,257.6,257.43,337.13639664]
[1732348991253,5.24511693,257.55,257.44,5.13639664]
[1732348991457,5.24511693,257.55,257.44,9.81672264]
[1732348994355,5.24511693,257.55,257.46,312.0]
[1732348995357,5.24511693,257.55,257.46,317.13639664]
[1732348995657,5.24511693,257.59,257.48,23.776884]
[1732348995951,2.84998038,257.58,257.49,5.13639664]
[1732348996155,5.24511693,257.62,257.5,20.0]
[1732348996339,2.85005343,257.61,257.51,5.13639664]
[1732348996650,5.24511693,257.62,257.51,9.81672264]
[1732348997759,5.24511693,257.64,257.52,23.776884]
[1732348997932,5.24511693,257.64,257.53,5.13639664]
[1732348998139,5.24511693,257.67,257.56,6.3838]
[1732348998354,2.85049411,257.66,257.56,6.3838]
[1732348998553,5.24511693,257.67,257.57,312.0]
[1732348998755,2.8492123,257.66,257.57,312.0]
[1732348998956,5.24511693,257.67,257.57,312.0]
[1732348999159,5.24511693,257.67,257.56,6.3838]
[1732348999454,5.24511693,257.67,257.57,5.13639664]
[1732348999840,15.7282,257.74,257.57,10.05541709]
[1732349000048,5.24511693,257.69,257.58,5.13639664]
[1732349000353,5.24511693,257.69,257.58,10.05541709]
[1732349000737,5.24511693,257.71,257.58,10.05541709]
[1732349001068,5.24511693,257.76,257.61,20.0]
[1732349001233,5.24511693,257.76,257.63,20.0]
[1732349001434,5.24511693,257.76,257.64,16.29471709]
[1732349002066,5.24511693,257.76,257.7,312.0]
[1732349004241,5.24511693,257.72,257.64,16.29471709]
[1732349007240,5.24511693,257.72,257.64,328.29471709]
[1732349007455,5.24511693,257.72,257.64,322.05541709]
[1732349007654,5.24511693,257.72,257.64,10.05541709]
[1732349012140,5.24511693,257.74,257.64,10.05541709]
[1732349013744,6.3807,257.87,257.67,20.0]
[1732349013946,5.24511693,257.81,257.68,10.15400042]
[1732349014354,5.24511693,257.79,257.68,10.15400042]
[1732349015166,5.24511693,257.79,257.73,312.0]
[1732349018556,5.24511693,257.79,257.68,13.6473198]
[1732349019363,5.24511693,257.77,257.68,10.15400042]
[1732349021456,5.24511693,257.77,257.68,322.15400042]
[1732349024670,5.24511693,257.77,257.68,10.15400042]
[1732349027565,5.24511693,257.75,257.68,10.15400042]
[1732349027874,5.24511693,257.75,257.68,322.15400042]
[1732349028571,5.24511693,257.77,257.68,322.15400042]
[1732349029069,5.24511693,257.77,257.68,10.15400042]
[1732349030954,43.776884,257.85,257.68,10.15400042]
[1732349031155,5.24511693,257.77,257.68,10.15400042]
[1732349032078,5.24511693,257.77,257.69,312.0]
[1732349032456,5.24511693,257.75,257.69,312.0]
[1732349034977,5.24511693,257.75,257.69,317.13639664]
[1732349035361,5.24511693,257.75,257.69,5.13639664]
[1732349035756,43.776884,257.85,257.69,5.13639664]
[1732349035970,5.24511693,257.76,257.69,5.13639664]
[1732349037579,43.776884,257.85,257.69,5.13639664]
[1732349037882,5.24511693,257.79,257.69,5.13639664]
[1732349038380,5.24511693,257.79,257.71,312.0]
[1732349039981,15.9011,257.86,257.71,5.13639664]
[1732349040176,5.24511693,257.83,257.72,5.13639664]
[1732349040769,5.24511693,257.81,257.72,5.13639664]
[1732349042268,5.24511693,257.83,257.72,5.13639664]
[1732349042588,15.9011,257.86,257.72,5.13639664]
[1732349042785,5.24511693,257.82,257.72,5.13639664]
[1732349042964,5.24511693,257.82,257.76,312.0]
[1732349044978,15.9011,257.86,257.76,312.0]
[1732349045183,15.9011,257.86,257.77,5.13639664]
[1732349045395,8.10203074,257.85,257.77,5.13639664]
[1732349045566,5.24511693,257.85,257.77,5.13639664]
[1732349046182,51.66803972,257.92,257.77,5.13639664]
[1732349046361,5.24511693,257.87,257.77,5.13639664]
[1732349047184,5.24511693,257.87,257.78,5.01760378]
[1732349047388,5.24511693,257.85,257.79,23.776884]
[1732349048085,5.24511693,257.85,257.79,335.776884]
[1732349048677,5.24511693,257.85,257.79,23.776884]
[1732349048879,5.24511693,257.85,257.78,10.15400042]
[1732349049388,51.66803972,257.92,257.78,10.15400042]
[1732349049389,5.24511693,257.84,257.78,10.15400042]
[1732349051884,5.24511693,257.84,257.78,322.15400042]
[1732349054769,5.24511693,257.84,257.78,10.15400042]
[1732349054999,5.24511693,257.82,257.78,5.13639664]
[1732349057295,5.24511693,257.84,257.78,5.13639664]
[1732349057789,5.24511693,257.84,257.78,317.13639664]
[1732349060092,5.24511693,257.8,257.78,5.13639664]
[1732349060601,5.24511693,257.8,257.73,5.13639664]
[1732349063182,5.24511693,257.8,257.73,317.13639664]
[1732349064595,5.24511693,257.8,257.73,5.13639664]
[1732349067600,5.24511693,257.8,257.73,317.13639664]
[1732349069107,5.24511693,257.78,257.73,5.13639664]
[1732349069307,5.24511693,257.76,257.73,5.13639664]
[1732349076316,16.5302,257.83,257.73,5.13639664]
[1732349076561,5.24511693,257.79,257.73,5.13639664]
[1732349078119,16.5302,257.83,257.73,5.13639664]
[1732349078419,5.24511693,257.78,257.73,5.13639664]
[1732349078625,5.24511693,257.78,257.71,5.13639664]
[1732349082301,16.5302,257.83,257.71,5.13639664]
[1732349082506,2.86171362,257.82,257.71,5.13639664]
[1732349082720,5.24511693,257.78,257.71,5.13639664]
[1732349083800,16.5302,257.83,257.71,5.13639664]
[1732349084004,5.24511693,257.77,257.71,5.13639664]
[1732349084201,5.24511693,257.77,257.72,312.0]
[1732349084708,16.5302,257.83,257.72,312.0]
[1732349084905,5.24511693,257.77,257.72,312.0]
[1732349086815,23.776884,257.82,257.71,5.13639664]
[1732349087008,5.24511693,257.77,257.71,5.13639664]
[1732349089726,5.24511693,257.77,257.71,317.13639664]
[1732349091031,16.5302,257.83,257.71,317.13639664]
[1732349091206,5.24511693,257.79,257.71,5.13639664]
[1732349091408,5.24511693,257.75,257.71,5.13639664]
[1732349091640,5.24511693,257.75,257.67,5.01760378]
[1732349091932,5.24511693,257.77,257.67,5.01760378]
[1732349092307,5.24511693,257.77,257.67,10.15400042]
[1732349093006,5.24511693,257.77,257.68,3.863]
[1732349093408,5.24511693,257.77,257.68,8.99939664]
[1732349094139,5.24511693,257.75,257.68,5.13639664]
[1732349095919,5.24511693,257.75,257.68,10.15400042]
[1732349096114,5.24511693,257.75,257.69,5.13639664]
[1732349096532,5.24511693,257.77,257.69,10.15400042]
[1732349096717,23.776884,257.82,257.69,10.15400042]
[1732349096919,5.24511693,257.77,257.69,10.15400042]
[1732349097115,5.24511693,257.77,257.69,322.15400042]
[1732349098026,5.24511693,257.77,257.7,5.01760378]
[1732349098209,5.24511693,257.77,257.71,5.13639664]
[1732349099429,16.5302,257.83,257.71,5.13639664]
[1732349099734,5.24511693,257.79,257.71,10.15400042]
[1732349100310,5.24511693,257.77,257.71,10.15400042]
[1732349100512,5.24511693,257.77,257.71,5.13639664]
[1732349100718,5.24511693,257.75,257.66,23.40918996]
[1732349100917,5.24511693,257.75,257.66,28.5455866]
[1732349101729,5.24511693,257.75,257.68,312.0]
[1732349103821,5.24511693,257.75,257.63,16.0305]
[1732349103822,5.24511693,257.69,257.56,16.0552]
[1732349104028,5.24511693,257.63,257.5,16.0552]
[1732349104217,5.24511693,257.61,257.51,3.863]
[1732349105118,5.24511693,257.61,257.5,16.0552]
[1732349105319,5.24511693,257.59,257.5,19.9182]
[1732349105517,5.24511693,257.59,257.49,4.33834109]
[1732349105917,5.24511693,257.57,257.49,4.33834109]
[1732349106324,5.24511693,257.57,257.49,3.50707009]
[1732349106565,5.24511693,257.57,257.44,16.0552]
[1732349106742,5.24511693,257.57,257.47,312.0]
[1732349107237,5.24511693,257.55,257.47,312.0]
[1732349107413,5.24511693,257.55,257.44,20.39354109]
[1732349107613,5.24511693,257.55,257.45,3.863]
[1732349107824,5.24511693,257.55,257.45,8.20134109]
[1732349108225,5.24511693,257.55,257.46,23.863]
[1732349109037,5.24511693,257.55,257.46,23.363]
[1732349110219,16.331,257.64,257.46,23.363]
[1732349110220,5.24511693,257.57,257.46,23.363]
[1732349110415,5.24511693,257.57,257.46,335.83834109]
[1732349110613,5.24511693,257.55,257.46,331.5]
[1732349111511,5.24511693,257.55,257.45,20.0]
[1732349112837,5.24511693,257.55,257.45,24.33834109]
[1732349113135,5.24511693,257.55,257.45,20.0]
[1732349113322,16.331,257.64,257.45,20.0]
[1732349113522,23.776884,257.63,257.45,24.33834109]
[1732349113722,23.776884,257.63,257.45,20.0]
[1732349113723,5.24511693,257.55,257.45,20.0]
[1732349113941,5.24511693,257.51,257.41,7.942726]
[1732349114142,26.276884,257.63,257.41,7.942726]
[1732349114143,5.24511693,257.49,257.41,7.942726]
[1732349114442,5.24511693,257.49,257.41,3.863]
[1732349114937,5.24511693,257.47,257.39,3.863]
[1732349115938,5.24511693,257.47,257.37,3.863]
[1732349116321,5.24511693,257.47,257.37,8.20134109]
[1732349118234,5.24511693,257.47,257.37,320.20134109]
[1732349119322,5.24511693,257.47,257.37,8.20134109]
[1732349119938,5.24511693,257.47,257.29,2.5]